bitfinex/quotes_SOLUSD_20230116
["timestamp","ask_amount","ask_price","bid_price","bid_amount"]
[1673904073409,20.0,23.545,23.524,17.0]
[1673904073624,20.0,23.545,23.525,20.0]
[1673904073827,20.0,23.545,23.53,22.87]
[1673904074228,20.0,23.545,23.531,20.0]
[1673904075400,17.0,23.544,23.531,20.0]
[1673904075615,48.88,23.544,23.523,37.70221973]
[1673904075931,48.88,23.544,23.51,22.78]
[1673904076134,130.8353,23.543,23.511,51.92]
[1673904076334,48.88,23.542,23.511,31.92]
[1673904076762,20.0,23.54,23.512,20.0]
[1673904077079,48.89,23.539,23.511,59.16418327]
[1673904077300,48.89,23.539,23.512,37.0]
[1673904077479,20.0,23.538,23.512,20.0]
[1673904077694,48.89,23.537,23.512,20.0]
[1673904078242,48.89,23.537,23.512,21.46196354]
[1673904078563,20.0,23.536,23.512,59.16418327]
[1673904078748,20.0,23.534,23.513,20.0]
[1673904078959,20.0,23.534,23.513,37.0]
[1673904079180,20.0,23.534,23.513,74.70221973]
[1673904079600,20.0,23.534,23.513,20.0]
[1673904079601,31.89,23.533,23.513,20.0]
[1673904079811,20.0,23.531,23.511,20.0]
[1673904080019,20.0,23.531,23.514,37.70221973]
[1673904080020,31.9,23.531,23.514,37.70221973]
[1673904080238,31.89,23.535,23.515,20.0]
[1673904080448,20.0,23.536,23.515,20.0]
[1673904080655,16.795336,23.536,23.515,20.0]
[1673904081059,31.89,23.535,23.515,20.0]
[1673904081284,31.89,23.535,23.513,20.0]
[1673904081486,20.0,23.533,23.514,17.0]
[1673904081805,20.0,23.533,23.515,20.0]
[1673904082130,31.9,23.532,23.515,20.0]
[1673904082529,20.0,23.533,23.515,20.0]
[1673904082949,17.0,23.532,23.515,20.0]
[1673904083191,17.0,23.532,23.512,20.0]
[1673904083495,31.9,23.531,23.501,31.94]
[1673904083705,20.0,23.53,23.503,37.70221973]
[1673904084027,20.0,23.528,23.504,20.0]
[1673904084231,48.9,23.527,23.503,59.16418327]
[1673904084869,20.0,23.526,23.503,59.16418327]
[1673904085079,17.0,23.525,23.503,37.70221973]
[1673904085281,48.9,23.525,23.503,37.70221973]
[1673904085476,20.0,23.524,23.491,31.95]
[1673904085809,20.0,23.522,23.492,37.70221973]
[1673904085997,31.91,23.521,23.492,37.70221973]
[1673904086205,59.91,23.52,23.492,37.70221973]
[1673904086418,36.83486,23.519,23.492,37.70221973]
[1673904086629,37.0,23.518,23.483,21.46196354]
[1673904086860,31.92,23.517,23.483,21.46196354]
[1673904087078,41.92486,23.516,23.484,20.0]
[1673904087255,41.92486,23.516,23.482,37.70221973]
[1673904087256,36.84486,23.515,23.482,37.70221973]
[1673904087475,37.0,23.514,23.484,37.70221973]
[1673904087683,51.92,23.513,23.484,37.20221973]
[1673904087909,17.0,23.512,23.484,37.20221973]
[1673904088099,31.92,23.511,23.484,37.20221973]
[1673904088309,17.0,23.51,23.484,37.20221973]
[1673904088541,31.93,23.509,23.484,37.20221973]
[1673904088749,20.0,23.508,23.484,58.66418327]
[1673904088959,20.0,23.508,23.485,31.96]
[1673904089170,17.0,23.507,23.486,20.0]
[1673904089362,20.0,23.508,23.486,20.0]
[1673904089572,20.0,23.509,23.487,20.0]
[1673904089802,20.0,23.509,23.488,37.0]
[1673904090011,20.0,23.509,23.488,74.6588864]
[1673904090229,20.0,23.509,23.488,37.0]
[1673904090425,31.93,23.508,23.488,37.0]
[1673904090630,20.0,23.507,23.488,20.0]
[1673904090955,17.0,23.506,23.482,20.0]
[1673904091150,20.0,23.505,23.482,20.0]
[1673904091358,17.0,23.504,23.482,20.0]
[1673904092228,31.93,23.504,23.482,20.0]
[1673904092622,20.0,23.505,23.482,57.6588864]
[1673904092847,19.5,23.505,23.483,17.0]
[1673904093163,31.93,23.504,23.484,20.0]
[1673904093380,17.0,23.503,23.484,20.0]
[1673904093567,20.0,23.501,23.484,20.0]
[1673904093777,31.94,23.5,23.481,20.0]
[1673904093995,20.0,23.501,23.477,37.6588864]
[1673904093996,17.0,23.499,23.477,37.6588864]
[1673904094426,31.94,23.498,23.477,37.6588864]
[1673904094611,17.0,23.5,23.477,37.6588864]
[1673904094612,20.0,23.496,23.477,37.6588864]
[1673904094826,31.95,23.495,23.478,21.46196354]
[1673904095045,20.0,23.496,23.478,20.96196354]
[1673904095258,20.0,23.496,23.479,41.46196354]
[1673904095584,20.0,23.496,23.479,20.0]
[1673904095773,20.0,23.496,23.472,39.91180606]
[1673904095774,17.0,23.495,23.477,21.46196354]
[1673904095982,48.95,23.495,23.478,21.46196354]
[1673904096402,17.0,23.495,23.475,37.6588864]
[1673904096618,20.0,23.496,23.477,20.0]
[1673904096825,20.0,23.496,23.476,21.46196354]
[1673904097050,20.0,23.496,23.478,21.46196354]
[1673904097248,20.0,23.496,23.479,20.0]
[1673904097900,20.0,23.496,23.48,17.0]
[1673904098108,20.0,23.496,23.481,20.0]
[1673904098426,20.0,23.499,23.479,20.0]
[1673904098744,20.0,23.499,23.482,21.46196354]
[1673904098949,20.0,23.499,23.48,17.0]
[1673904099158,20.0,23.499,23.481,20.0]
[1673904099373,20.0,23.499,23.482,17.0]
[1673904099595,20.0,23.501,23.484,20.0]
[1673904099809,20.0,23.502,23.485,17.0]
[1673904100003,108.9302,23.508,23.486,20.0]
[1673904100004,140.8602,23.508,23.486,20.0]
[1673904100214,108.9302,23.508,23.487,37.0]
[1673904100436,31.92,23.515,23.49,22.87]
[1673904100646,108.9302,23.515,23.491,57.0]
[1673904100857,140.8502,23.515,23.491,78.46196354]
[1673904101071,108.9302,23.515,23.492,21.46196354]
[1673904101264,31.92,23.512,23.493,37.0]
[1673904101472,20.0,23.511,23.493,37.0]
[1673904101686,20.0,23.511,23.493,58.46196354]
[1673904102857,20.0,23.511,23.493,17.0]
[1673904103176,17.0,23.51,23.49,22.87]
[1673904103360,20.0,23.509,23.487,59.12084994]
[1673904104208,20.0,23.509,23.49,22.84]
[1673904104424,20.0,23.514,23.491,48.95]
[1673904104628,20.0,23.514,23.5,22.87]
[1673904104838,20.0,23.514,23.501,37.0]
[1673904105886,20.0,23.517,23.501,37.0]
[1673904106102,20.0,23.517,23.51,24.68]
[1673904106297,31.91,23.523,23.511,20.0]
[1673904106513,51.91,23.524,23.511,37.0]
[1673904106830,20.0,23.524,23.511,37.0]
[1673904107031,20.0,23.524,23.511,20.0]
[1673904107451,51.91,23.524,23.511,20.0]
[1673904108622,20.0,23.524,23.503,20.0]
[1673904108951,17.0,23.523,23.508,37.6588864]
[1673904109134,31.91,23.522,23.508,37.6588864]
[1673904109355,17.0,23.521,23.494,21.46196354]
[1673904109557,51.91,23.52,23.49,24.67]
[1673904109767,37.0,23.519,23.49,24.67]
[1673904109977,31.91,23.518,23.49,24.67]
[1673904110207,110.9442,23.517,23.5,24.67]
[1673904110414,20.0,23.515,23.5,24.67]
[1673904110837,20.0,23.515,23.501,37.0]
[1673904111458,20.0,23.515,23.501,20.0]
[1673904112710,20.0,23.513,23.49,24.5]
[1673904112930,31.92,23.512,23.49,24.5]
[1673904113271,20.0,23.511,23.488,21.46196354]
[1673904113488,31.92,23.51,23.488,21.46196354]
[1673904113697,20.0,23.509,23.488,21.46196354]
[1673904113906,20.0,23.509,23.49,24.67]
[1673904114214,20.0,23.509,23.491,37.0]
[1673904114952,48.93,23.508,23.481,102.3358858]
[1673904115146,20.0,23.507,23.481,37.6588864]
[1673904115358,48.93,23.506,23.481,37.6588864]
[1673904116098,4.92486,23.505,23.476,29.84]
[1673904116300,4.92486,23.505,23.474,21.46196354]
[1673904116301,20.0,23.503,23.474,21.46196354]
[1673904116509,48.94,23.502,23.474,21.46196354]
[1673904116725,48.94,23.502,23.474,59.12084994]
[1673904116932,20.0,23.501,23.475,20.0]
[1673904117147,31.94,23.5,23.475,20.0]
[1673904117352,20.0,23.501,23.48,24.67]
[1673904117771,31.94,23.5,23.481,17.0]
[1673904117977,20.0,23.499,23.472,25.34402275]
[1673904118189,20.0,23.499,23.476,21.46196354]
[1673904118190,48.94,23.498,23.476,21.46196354]
[1673904118412,20.0,23.497,23.476,21.46196354]
[1673904118631,31.94,23.496,23.476,21.46196354]
[1673904119041,20.0,23.495,23.476,21.46196354]
[1673904119356,20.0,23.495,23.477,17.0]
[1673904119570,20.0,23.495,23.478,20.0]
[1673904120405,20.0,23.499,23.48,24.67]
[1673904120617,20.0,23.504,23.481,20.0]
[1673904120810,20.0,23.504,23.482,27.96]
[1673904121025,20.0,23.504,23.481,59.12084994]
[1673904121237,20.0,23.501,23.481,37.6588864]
[1673904121447,31.94,23.5,23.478,21.46196354]
[1673904121782,20.0,23.499,23.471,156.9812864]
[1673904121997,31.94,23.498,23.474,21.46196354]
[1673904122180,20.0,23.496,23.471,37.6588864]
[1673904122391,68.95,23.495,23.472,21.46196354]
[1673904122813,68.95,23.495,23.47,24.67]
[1673904123244,20.0,23.494,23.471,20.0]
[1673904123459,48.95,23.493,23.471,20.0]
[1673904123668,20.0,23.492,23.471,41.46196354]
[1673904123877,31.95,23.491,23.471,41.46196354]
[1673904124098,20.0,23.49,23.47,24.67]
[1673904125224,20.0,23.49,23.471,20.0]
[1673904125650,20.0,23.49,23.471,41.46196354]
[1673904125870,20.0,23.49,23.472,17.0]
[1673904126072,20.0,23.49,23.471,41.46196354]
[1673904126501,20.0,23.49,23.471,20.0]
[1673904126916,31.95,23.489,23.471,20.0]
[1673904127144,51.95,23.49,23.471,20.0]
[1673904127353,17.0,23.489,23.471,20.0]
[1673904127547,51.95,23.49,23.471,20.0]
[1673904128392,51.95,23.49,23.472,17.0]
[1673904128927,20.0,23.49,23.473,21.46196354]
[1673904129144,20.0,23.49,23.474,37.0]
[1673904129356,20.0,23.492,23.474,37.0]
[1673904129541,163.9723,23.499,23.48,24.67]
[1673904129752,163.9723,23.499,23.481,20.0]
[1673904130186,132.0323,23.499,23.475,41.46196354]
[1673904130398,132.0323,23.499,23.476,17.0]
[1673904130800,51.94,23.498,23.477,20.0]
[1673904131232,20.0,23.498,23.477,20.0]
[1673904131448,20.0,23.498,23.48,24.67]
[1673904131778,20.0,23.498,23.481,37.0]
[1673904132587,20.0,23.499,23.481,58.46196354]
[1673904132823,20.0,23.499,23.481,37.0]
[1673904133218,20.0,23.502,23.483,20.0]
[1673904133435,20.0,23.502,23.484,37.0]
[1673904133746,20.0,23.502,23.485,41.46196354]
[1673904133957,20.0,23.502,23.486,37.0]
[1673904134383,20.0,23.503,23.49,24.67]
[1673904134606,130.458,23.515,23.491,37.0]
[1673904134802,130.458,23.515,23.492,28.01]
[1673904135013,130.458,23.515,23.493,37.0]
[1673904135211,20.0,23.514,23.493,58.46196354]
[1673904135423,20.0,23.514,23.5,24.67]
[1673904135658,20.0,23.514,23.501,37.0]
[1673904135971,20.0,23.515,23.501,37.0]
[1673904137340,20.0,23.52,23.501,58.46196354]
[1673904137545,20.0,23.52,23.502,20.0]
[1673904137756,20.0,23.52,23.501,58.46196354]
[1673904137757,20.0,23.52,23.503,17.0]
[1673904137964,20.0,23.52,23.503,21.46196354]
[1673904138186,20.0,23.52,23.51,24.67]
[1673904138488,20.0,23.528,23.511,37.0]
[1673904138489,31.9,23.527,23.511,37.0]
[1673904138711,20.0,23.526,23.511,17.0]
[1673904138892,20.0,23.526,23.512,20.0]
[1673904139335,51.9,23.526,23.512,20.0]
[1673904139523,51.9,23.526,23.502,20.0]
[1673904140168,20.0,23.526,23.51,24.67]
[1673904140383,20.0,23.526,23.511,20.0]
[1673904140783,20.0,23.526,23.512,17.0]
[1673904141215,20.0,23.526,23.513,21.46196354]
[1673904141440,20.0,23.526,23.514,17.0]
[1673904141625,20.0,23.526,23.513,21.46196354]
[1673904142072,20.0,23.526,23.511,20.0]
[1673904142285,20.0,23.526,23.512,17.0]
[1673904143109,20.0,23.526,23.512,38.46196354]
[1673904143319,20.0,23.526,23.512,17.0]
[1673904144576,20.0,23.526,23.511,20.0]
[1673904144792,20.0,23.526,23.504,20.0]
[1673904145113,20.0,23.526,23.5,24.67]
[1673904145114,20.0,23.524,23.503,20.0]
[1673904145631,41.46196354,23.524,23.503,20.0]
[1673904145849,48.91,23.523,23.5,24.67]
[1673904146064,20.0,23.522,23.5,24.67]
[1673904146259,48.91,23.521,23.5,24.67]
[1673904146808,20.0,23.52,23.5,24.67]
[1673904147326,20.0,23.52,23.501,37.0]
[1673904147642,20.0,23.52,23.501,58.46196354]
[1673904148068,20.0,23.52,23.502,41.46196354]
[1673904148264,20.0,23.52,23.503,37.0]
[1673904149847,20.0,23.522,23.503,58.46196354]
[1673904150050,20.0,23.522,23.51,24.67]
[1673904150263,20.0,23.522,23.511,37.0]
[1673904150669,20.0,23.522,23.511,20.0]
[1673904152266,20.0,23.524,23.512,17.0]
[1673904152584,20.0,23.526,23.512,17.0]
[1673904152791,109.7705,23.527,23.512,17.0]
[1673904152981,108.5098,23.53,23.52,24.67]
[1673904153194,20.0,23.542,23.521,37.0]
[1673904153195,51.89,23.535,23.521,37.0]
[1673904153421,20.0,23.535,23.521,37.0]
[1673904154170,20.0,23.535,23.52,24.67]
[1673904154372,51.89,23.535,23.512,37.6588864]
[1673904154575,51.89,23.535,23.513,17.0]
[1673904154794,51.89,23.535,23.511,17.0]
[1673904155002,51.89,23.535,23.512,20.0]
[1673904155203,51.89,23.535,23.513,17.0]
[1673904155418,51.89,23.535,23.511,38.46196354]
[1673904155733,51.89,23.535,23.512,20.0]
[1673904155941,51.89,23.535,23.52,24.5]
[1673904156153,20.0,23.535,23.513,17.0]
[1673904156361,20.0,23.535,23.521,20.0]
[1673904156989,20.0,23.535,23.514,20.0]
[1673904157198,20.0,23.535,23.515,17.0]
[1673904157512,20.0,23.535,23.516,20.0]
[1673904157952,20.0,23.535,23.517,17.0]
[1673904158352,20.0,23.535,23.518,20.0]
[1673904158575,51.89,23.535,23.519,17.0]
[1673904158789,20.0,23.535,23.52,20.0]
[1673904158990,20.0,23.535,23.521,17.0]
[1673904159203,20.0,23.535,23.522,20.0]
[1673904159407,20.0,23.535,23.523,17.0]
[1673904162137,20.0,23.535,23.522,20.0]
[1673904162452,17.0,23.534,23.51,24.67]
[1673904162661,31.89,23.533,23.51,24.67]
[1673904162872,37.0,23.532,23.51,24.67]
[1673904163195,31.9,23.531,23.51,24.67]
[1673904163630,20.0,23.53,23.51,24.67]
[1673904163816,31.9,23.529,23.51,24.67]
[1673904164032,48.9,23.529,23.51,24.67]
[1673904164349,48.9,23.529,23.5,24.67]
[1673904164350,41.46196354,23.528,23.5,24.67]
[1673904164562,31.9,23.527,23.5,24.67]
[1673904164774,37.0,23.526,23.5,24.67]
[1673904164976,51.9,23.525,23.5,24.67]
[1673904165183,37.0,23.524,23.5,24.67]
[1673904165403,51.91,23.523,23.5,24.67]
[1673904165733,24.67,23.52,23.49,67.62178882]
[1673904166043,36.83486,23.519,23.49,67.62178882]
[1673904166236,57.0,23.518,23.49,67.62178882]
[1673904166449,31.92,23.517,23.49,42.95178882]
[1673904166661,20.0,23.516,23.49,46.13196354]
[1673904166879,161.1104,23.515,23.491,17.0]
[1673904167087,20.0,23.514,23.491,17.0]
[1673904167404,20.0,23.512,23.492,20.0]
[1673904167721,20.0,23.512,23.493,17.0]
[1673904167916,20.0,23.512,23.494,20.0]
[1673904168118,17.0,23.511,23.492,20.0]
[1673904168548,17.0,23.511,23.491,20.0]
[1673904168760,51.93,23.51,23.491,20.0]
[1673904168964,17.0,23.509,23.491,20.0]
[1673904169200,31.93,23.508,23.491,20.0]
[1673904169405,17.0,23.507,23.483,21.46196354]
[1673904169726,20.0,23.505,23.48,46.14196354]
[1673904169915,20.0,23.503,23.48,21.46196354]
[1673904170122,48.94,23.502,23.474,42.95178882]
[1673904170353,48.94,23.502,23.474,64.41375236]
[1673904170666,20.0,23.501,23.476,20.0]
[1673904170881,20.0,23.501,23.48,24.67]
[1673904171074,20.0,23.501,23.481,17.0]
[1673904171285,20.0,23.501,23.481,38.46196354]
[1673904171831,20.0,23.501,23.481,21.46196354]
[1673904172147,20.0,23.501,23.475,21.46196354]
[1673904172148,17.0,23.5,23.475,21.46196354]
[1673904172357,20.0,23.501,23.482,20.0]
[1673904172358,31.94,23.499,23.482,20.0]
[1673904172667,20.0,23.498,23.478,21.46196354]
[1673904172880,20.0,23.498,23.48,24.5]
[1673904173187,31.94,23.5,23.481,20.0]
[1673904173410,20.0,23.501,23.482,17.0]
[1673904174235,118.384,23.503,23.483,20.0]
[1673904174450,118.384,23.503,23.484,37.0]
[1673904174668,108.6345,23.504,23.485,20.0]
[1673904174865,108.6345,23.504,23.486,37.0]
[1673904175292,108.6345,23.504,23.487,21.46196354]
[1673904175618,20.0,23.503,23.488,37.0]
[1673904176885,20.0,23.503,23.488,20.0]
[1673904177092,20.0,23.503,23.46,98.68]
[1673904177093,20.0,23.503,23.48,45.96196354]
[1673904177277,31.94,23.502,23.481,20.0]
[1673904177815,20.0,23.5,23.481,20.0]
[1673904178441,20.0,23.501,23.481,41.46196354]
[1673904178773,20.0,23.501,23.482,20.0]
[1673904179175,20.0,23.501,23.484,20.0]
[1673904179384,20.0,23.501,23.485,17.0]
[1673904179586,20.0,23.501,23.486,20.0]
[1673904179799,20.0,23.501,23.487,17.0]
[1673904180125,20.0,23.501,23.487,38.46196354]
[1673904180334,20.0,23.501,23.488,41.46196354]
[1673904180664,20.0,23.501,23.489,38.46196354]
[1673904181398,20.0,23.503,23.49,20.0]
[1673904181611,20.0,23.51,23.491,17.0]
[1673904181810,20.0,23.51,23.492,20.0]
[1673904182013,20.0,23.51,23.493,17.0]
[1673904182347,20.0,23.51,23.493,38.46196354]
[1673904182553,20.0,23.51,23.494,21.46196354]
[1673904182743,20.0,23.509,23.495,37.0]
[1673904183181,20.0,23.509,23.496,21.46196354]
[1673904183398,20.0,23.509,23.497,37.0]
[1673904183795,20.0,23.509,23.498,21.46196354]
[1673904184011,20.0,23.509,23.499,37.0]
[1673904184545,20.0,23.509,23.49,24.67]
[1673904184764,20.0,23.509,23.495,21.46196354]
[1673904184949,20.0,23.509,23.496,37.0]
[1673904185161,20.0,23.509,23.497,20.0]
[1673904185371,20.0,23.509,23.498,17.0]
[1673904185590,20.0,23.509,23.499,20.0]
[1673904186338,20.0,23.509,23.5,17.0]
[1673904186538,20.0,23.514,23.502,20.0]
[1673904186757,20.0,23.514,23.503,17.0]
[1673904187064,109.423,23.517,23.503,38.46196354]
[1673904187279,20.0,23.518,23.504,21.46196354]
[1673904187599,20.0,23.518,23.505,17.0]
[1673904187999,20.0,23.518,23.506,21.46196354]
[1673904188423,20.0,23.518,23.507,17.0]
[1673904189484,20.0,23.518,23.507,38.46196354]
[1673904191587,20.0,23.518,23.508,20.0]
[1673904191809,20.0,23.518,23.5,24.67]
[1673904192020,31.92,23.517,23.492,109.0989]
[1673904192210,17.0,23.515,23.49,24.67]
[1673904192420,20.0,23.514,23.49,24.67]
[1673904193158,133.8615,23.514,23.49,24.67]
[1673904193367,48.92,23.513,23.488,42.95178882]
[1673904193703,41.46196354,23.512,23.486,21.46196354]
[1673904193885,24.62,23.51,23.481,42.95178882]
[1673904194102,36.85486,23.509,23.48,24.5]
[1673904194310,41.92486,23.508,23.48,24.5]
[1673904194517,56.85486,23.507,23.48,45.96196354]
[1673904194835,63.38682354,23.506,23.48,21.46196354]
[1673904195039,36.85486,23.505,23.48,21.46196354]
[1673904195250,20.0,23.504,23.48,46.13196354]
[1673904195471,20.0,23.502,23.481,20.0]
[1673904195892,20.0,23.502,23.482,38.46196354]
[1673904196100,20.0,23.502,23.482,21.46196354]
[1673904196314,31.94,23.501,23.48,24.67]
[1673904196515,20.0,23.5,23.48,24.67]
[1673904196726,20.0,23.498,23.48,24.67]
[1673904196951,17.0,23.497,23.48,46.13196354]
[1673904197154,48.94,23.497,23.48,46.13196354]
[1673904197368,20.0,23.496,23.481,20.0]
[1673904198111,20.0,23.496,23.471,40.09178882]
[1673904198325,68.95,23.495,23.472,21.46196354]
[1673904198522,20.0,23.494,23.472,21.46196354]
[1673904198735,48.95,23.493,23.472,21.46196354]
[1673904198947,48.95,23.493,23.46,24.66]
[1673904199289,48.95,23.493,23.468,21.46196354]
[1673904199290,20.0,23.492,23.468,21.46196354]
[1673904199495,48.95,23.491,23.468,21.46196354]
[1673904199794,48.95,23.491,23.47,24.67]
[1673904199795,31.95,23.491,23.47,24.67]
[1673904199987,141.3097,23.491,23.47,24.67]
[1673904200199,20.0,23.49,23.471,21.46196354]
[1673904200408,20.0,23.49,23.472,17.0]
[1673904200631,20.0,23.49,23.471,21.46196354]
[1673904200830,31.95,23.489,23.471,21.46196354]
[1673904201041,20.0,23.488,23.471,21.46196354]
[1673904201249,48.96,23.487,23.472,20.0]
[1673904201572,20.0,23.486,23.472,20.0]
[1673904201898,17.0,23.485,23.461,20.0]
[1673904202117,51.96,23.484,23.461,20.0]
[1673904202301,51.96,23.484,23.46,64.75178882]
[1673904202302,20.0,23.482,23.46,24.66]
[1673904202508,31.96,23.481,23.46,24.66]
[1673904202841,17.0,23.48,23.46,46.12196354]
[1673904203062,31.97,23.479,23.46,46.12196354]
[1673904203275,17.0,23.478,23.46,46.12196354]
[1673904203482,17.0,23.478,23.452,42.53240882]
[1673904203483,71.97,23.477,23.45,24.67]
[1673904203702,71.97,23.477,23.451,21.46196354]
[1673904203703,17.0,23.476,23.451,21.46196354]
[1673904203908,31.97,23.475,23.451,21.46196354]
[1673904204117,37.0,23.474,23.45,24.67]
[1673904204308,31.98,23.473,23.442,42.53240882]
[1673904204524,57.0,23.472,23.446,21.46196354]
[1673904204729,31.98,23.471,23.446,21.46196354]
[1673904204945,31.98,23.471,23.45,24.5]
[1673904205168,20.0,23.47,23.45,24.5]
[1673904205388,20.0,23.468,23.451,21.46196354]
[1673904205782,17.0,23.467,23.452,20.0]
[1673904206099,20.0,23.466,23.452,20.0]
[1673904206309,20.0,23.466,23.451,20.0]
[1673904206310,20.0,23.464,23.451,20.0]
[1673904206514,20.0,23.464,23.44,88.94884483]
[1673904206728,48.99,23.463,23.443,21.46196354]
[1673904207167,48.99,23.463,23.44,24.6]
[1673904207490,20.0,23.462,23.44,46.06196354]
[1673904207677,48.99,23.461,23.44,46.06196354]
[1673904208092,48.99,23.461,23.44,67.52392708]
[1673904208313,20.0,23.46,23.441,20.0]
[1673904208532,31.99,23.459,23.441,20.0]
[1673904208733,31.99,23.459,23.442,21.46196354]
[1673904208947,20.0,23.46,23.442,21.46196354]
[1673904209147,20.0,23.46,23.44,24.67]
[1673904209352,20.0,23.458,23.43,40.41]
[1673904209564,49.0,23.457,23.439,21.46196354]
[1673904209777,49.0,23.457,23.43,24.67]
[1673904209778,20.0,23.456,23.43,24.67]
[1673904209998,20.0,23.454,23.431,21.46196354]
[1673904210632,49.0,23.453,23.431,21.46196354]
[1673904210828,49.0,23.453,23.422,16.64]
[1673904210829,20.0,23.452,23.421,16.64]
[1673904211033,24.45,23.45,23.424,21.46196354]
[1673904211244,20.0,23.448,23.424,21.46196354]
[1673904211454,32.01,23.447,23.424,21.46196354]
[1673904211691,20.0,23.446,23.424,21.46196354]
[1673904212416,20.0,23.446,23.425,20.0]
[1673904212825,17.0,23.445,23.426,21.46196354]
[1673904213038,17.0,23.445,23.427,20.0]
[1673904213246,20.0,23.444,23.42,24.68]
[1673904213462,52.02,23.444,23.424,21.46196354]
[1673904214078,52.02,23.444,23.42,24.68]
[1673904214310,20.0,23.444,23.421,21.46196354]
[1673904214720,49.02,23.443,23.421,21.46196354]
[1673904215160,20.0,23.442,23.421,21.46196354]
[1673904215352,32.01,23.445,23.421,21.46196354]
[1673904215666,20.0,23.446,23.43,24.67]
[1673904215887,20.0,23.446,23.422,77.9656137]
[1673904215888,20.0,23.446,23.422,52.64498436]
[1673904216081,20.0,23.446,23.421,21.46196354]
[1673904216082,20.0,23.446,23.427,21.46196354]
[1673904216420,20.0,23.446,23.421,20.51]
[1673904216617,32.01,23.445,23.421,21.46196354]
[1673904217032,32.01,23.445,23.42,24.68]
[1673904217033,53.47196354,23.445,23.42,24.68]
[1673904217246,20.0,23.444,23.42,24.68]
[1673904217453,32.02,23.443,23.421,21.46196354]
[1673904217682,20.0,23.442,23.421,21.46196354]
[1673904218286,20.0,23.442,23.422,17.0]
[1673904218706,20.0,23.442,23.423,21.46196354]
[1673904218932,20.0,23.442,23.424,17.0]
[1673904219145,20.0,23.442,23.423,21.46196354]
[1673904219355,20.0,23.442,23.425,21.46196354]
[1673904219889,32.02,23.441,23.425,21.46196354]
[1673904220081,20.0,23.442,23.42,24.68]
[1673904220288,20.0,23.442,23.421,17.0]
[1673904220514,32.02,23.441,23.421,38.46196354]
[1673904220731,32.02,23.441,23.422,21.46196354]
[1673904220918,20.0,23.442,23.423,17.0]